Workbook

Sheet 12月
A1: 94年12月份單位系所借閱排行榜
A2: 排行 | B2: 單位系所 | C2: 總借書量 | D2: 單位系所總人數 | E2: 平均每人借閱冊數
A3: 1 | B3: 圖書館 | C3: 39 | D3: 7 | E3: 5.571428571
A4: 2 | B4: 幼兒教育學系 | C4: 1092 | D4: 201 | E4: 5.432835821
A5: 3 | B5: 資訊中心 | C5: 29 | D5: 7 | E5: 4.142857143
A6: 4 | B6: 長期照護研究所 | C6: 248 | D6: 67 | E6: 3.701492537
A7: 5 | B7: 通識教育中心 | C7: 59 | D7: 18 | E7: 3.277777778
A8: 6 | B8: 學務處 | C8: 44 | D8: 15 | E8: 2.933333333
A9: 7 | B9: 健康管理研究所 | C9: 433 | D9: 153 | E9: 2.830065359
A10: 8 | B10: 社會工作學系(含碩士班) | C10: 1827 | D10: 692 | E10: 2.64017341
A11: 9 | B11: 心理學系 | C11: 491 | D11: 192 | E11: 2.557291667
A12: 10 | B12: 醫務管理學系 | C12: 1197 | D12: 521 | E12: 2.297504798
A13: 11 | B13: 資訊與設計學系(含碩士班) | C13: 1080 | D13: 587 | E13: 1.839863714
A14: 12 | B14: 生物科技與生物資訊(含碩士班) | C14: 915 | D14: 555 | E14: 1.648648649
A15: 13 | B15: 休閒遊憩與管理學系(含碩士班) | C15: 1088 | D15: 696 | E15: 1.563218391
A16: 14 | B16: 財經法律學系 | C16: 560 | D16: 362 | E16: 1.546961326
A17: 15 | B17: 教務處 | C17: 6 | D17: 4 | E17: 1.5
A18: 16 | B18: 資訊科學與應用學系(含碩士班) | C18: 724 | D18: 501 | E18: 1.44510978
A19: 17 | B19: 生活應用學系(含碩士班) | C19: 870 | D19: 622 | E19: 1.398713826
A20: 18 | B20: 會計與資訊學系 | C20: 491 | D20: 356 | E20: 1.379213483
A21: 19 | B21: 資訊工程學系(含碩士班) | C21: 986 | D21: 754 | E21: 1.307692308
A22: 20 | B22: 經營管理研究所 | C22: 223 | D22: 173 | E22: 1.289017341
A23: 21 | B23: 資訊傳播學系 | C23: 233 | D23: 195 | E23: 1.194871795
A24: 22 | B24: 國際企業學系(含碩士班) | C24: 763 | D24: 658 | E24: 1.159574468
A25: 23 | B25: 應用外語學系 | C25: 645 | D25: 624 | E25: 1.033653846
A26: 24 | B26: 電腦與通訊學系(含碩士班) | C26: 314 | D26: 318 | E26: 0.9874213836
A27: 25 | B27: 財務金融學系 | C27: 387 | D27: 428 | E27: 0.9042056075
A28: 26 | B28: 總務處 | C28: 7 | D28: 15 | E28: 0.4666666667

Sheet 11月
A1: 94年11月份單位系所借閱排行榜
A2: 排行 | B2: 單位系所 | C2: 總借書量 | D2: 單位系所總人數 | E2: 平均每人借閱冊數
A3: 1 | B3: 圖書館 | C3: 66 | D3: 6 | E3: 11.00
A4: 2 | B4: 資訊中心 | C4: 52 | D4: 7 | E4: 7.43
A5: 3 | B5: 幼兒教育學系 | C5: 798 | D5: 202 | E5: 3.95
A6: 4 | B6: 學務處 | C6: 46 | D6: 13 | E6: 3.54
A7: 5 | B7: 長期照護 | C7: 236 | D7: 67 | E7: 3.52
A8: 6 | B8: 健康管理 | C8: 494 | D8: 155 | E8: 3.19
A9: 7 | B9: 體育室 | C9: 23 | D9: 8 | E9: 2.88
A10: 8 | B10: 醫務管理 | C10: 1,241 | D10: 522 | E10: 2.38
A11: 9 | B11: 資訊與設計 | C11: 1,384 | D11: 589 | E11: 2.35
A12: 10 | B12: 心理學系 | C12: 447 | D12: 196 | E12: 2.28
A13: 10 | B13: 通識教育中心 | C13: 41 | D13: 18 | E13: 2.28
A14: 11 | B14: 社會工作 | C14: 1,558 | D14: 700 | E14: 2.23
A15: 12 | B15: 財經法律 | C15: 709 | D15: 363 | E15: 1.95
A16: 13 | B16: 休閒遊憩與管理 | C16: 1,138 | D16: 700 | E16: 1.63
A17: 14 | B17: 生物科技與生物資訊 | C17: 900 | D17: 558 | E17: 1.61
A18: 15 | B18: 資訊科學與應用學系 | C18: 779 | D18: 497 | E18: 1.57
A19: 16 | B19: 會計與資訊 | C19: 551 | D19: 355 | E19: 1.55
A20: 17 | B20: 生活應用 | C20: 947 | D20: 624 | E20: 1.52
A21: 18 | B21: 資訊工程 | C21: 1,061 | D21: 755 | E21: 1.41
A22: 19 | B22: 資訊傳播 | C22: 274 | D22: 196 | E22: 1.40
A23: 20 | B23: 經營管理 | C23: 236 | D23: 173 | E23: 1.36
A24: 21 | B24: 國際企業 | C24: 825 | D24: 655 | E24: 1.26
A25: 22 | B25: 電腦與通訊 | C25: 348 | D25: 322 | E25: 1.08
A26: 23 | B26: 應用外語 | C26: 671 | D26: 630 | E26: 1.07
A27: 24 | B27: 財務金融 | C27: 402 | D27: 426 | E27: 0.94
A28: 25 | B28: 總務處 | C28: 11 | D28: 13 | E28: 0.85
A29: 26 | B29: 研究發展中心 | C29: 1 | D29: 2 | E29: 0.50
A30: 27 | B30: 教務處 | C30: 1 | D30: 3 | E30: 0.33

Sheet 10月
A1: 94年10月份單位系所借閱排行榜
A2: 排行 | B2: 單位系所 | C2: 總借書量 | D2: 單位系所總人數 | E2: 平均每人借閱冊數
A3: 1 | B3: 圖書館 | C3: 64 | D3: 6 | E3: =SUM(C5/D5) -> 3.10
A4: 2 | B4: 長期照護 | C4: 314 | D4: 67 | E4: =SUM(C6/D6) -> 2.57
A5: 3 | B5: 健康管理 | C5: 480 | D5: 155 | E5: =SUM(C7/D7) -> 2.37
A6: 4 | B6: 資訊中心 | C6: 18 | D6: 7 | E6: =SUM(C8/D8) -> 2.06
A7: 5 | B7: 幼兒教育學系 | C7: 479 | D7: 202 | E7: =SUM(C9/D9) -> 2.02
A8: 6 | B8: 社會工作 | C8: 1,442 | D8: 700 | E8: =SUM(C10/D10) -> 1.72
A9: 7 | B9: 醫務管理 | C9: 1,056 | D9: 522 | E9: =SUM(C11/D11) -> 1.58
A10: 8 | B10: 資訊與設計 | C10: 1,012 | D10: 589 | E10: =SUM(C12/D12) -> 1.44
A11: 9 | B11: 心理學系 | C11: 310 | D11: 196 | E11: =SUM(C13/D13) -> 1.32
A12: 10 | B12: 通識教育中心 | C12: 26 | D12: 18 | E12: =SUM(C14/D14) -> 1.31
A13: 11 | B13: 經營管理 | C13: 229 | D13: 173 | E13: =SUM(C15/D15) -> 1.30
A14: 12 | B14: 學務處 | C14: 17 | D14: 13 | E14: =SUM(C16/D16) -> 1.25
A15: 13 | B15: 資訊科學與應用學系 | C15: 646 | D15: 497 | E15: =SUM(C17/D17) -> 1.21
A16: 14 | B16: 會計與資訊 | C16: 444 | D16: 355 | E16: =SUM(C18/D18) -> 1.17
A17: 15 | B17: 生活應用 | C17: 756 | D17: 624 | E17: =SUM(C19/D19) -> 1.14
A18: 16 | B18: 財經法律 | C18: 423 | D18: 363 | E18: =SUM(C20/D20) -> 1.13
A19: 17 | B19: 生物科技與生物資訊 | C19: 635 | D19: 558 | E19: =SUM(C21/D21) -> 1.11
A20: 18 | B20: 體育室 | C20: 9 | D20: 8 | E20: =SUM(C22/D22) -> 1.06
A21: 19 | B21: 休閒遊憩與管理 | C21: 777 | D21: 700 | E21: =SUM(C23/D23) -> 1.04
A22: 20 | B22: 電腦與通訊 | C22: 341 | D22: 322 | E22: =SUM(C24/D24) -> 0.98
A23: 21 | B23: 資訊工程 | C23: 782 | D23: 755 | E23: =SUM(C25/D25) -> 0.93
A24: 22 | B24: 資訊傳播 | C24: 192 | D24: 196 | E24: =SUM(C26/D26) -> 0.87
A25: 23 | B25: 國際企業 | C25: 612 | D25: 655 | E25: =SUM(C27/D27) -> 0.85
A26: 24 | B26: 財務金融 | C26: 371 | D26: 426 | E26: =SUM(C28/D28) -> 0.60
A27: 25 | B27: 應用外語 | C27: 534 | D27: 630 | E27: =SUM(C29/D29) -> 0.38
A28: 26 | B28: 會計室 | C28: 3 | D28: 5 | E28: =SUM(C30/D30) -> 0.33
A29: 27 | B29: 總務處 | C29: 5 | D29: 13 | E29: =SUM(#REF!/#REF!) -> 
A30: 28 | B30: 教務處 | C30: 1 | D30: 3 | E30: =SUM(#REF!/#REF!) -> 

Sheet 06月
A1: 94年06月份單位系所借閱排行榜
A2: 排行 | B2: 單位系所 | C2: 總借書量 | D2: 單位系所總人數 | E2: 平均每人借閱冊數
A3: 1 | B3: 圖書館 | C3: 96 | D3: 6 | E3: 16.00
A4: 2 | B4: 秘書室 | C4: 7 | D4: 1 | E4: 7.00
A5: 3 | B5: 學務處 | C5: 43 | D5: 13 | E5: 3.31
A6: 4 | B6: 健康管理 | C6: 393 | D6: 155 | E6: 2.54
A7: 5 | B7: 幼兒教育學系 | C7: 505 | D7: 202 | E7: 2.50
A8: 6 | B8: 財經法律 | C8: 605 | D8: 363 | E8: 1.67
A9: 7 | B9: 長期照護 | C9: 105 | D9: 67 | E9: 1.57
A10: 8 | B10: 資訊與設計 | C10: 789 | D10: 589 | E10: 1.34
A11: 9 | B11: 通識教育中心 | C11: 23 | D11: 18 | E11: 1.28
A12: 10 | B12: 心理學系 | C12: 242 | D12: 196 | E12: 1.23
A13: 11 | B13: 經營管理 | C13: 205 | D13: 173 | E13: 1.18
A14: 12 | B14: 醫務管理 | C14: 601 | D14: 522 | E14: 1.15
A15: 12 | B15: 社會工作 | C15: 804 | D15: 700 | E15: 1.15
A16: 13 | B16: 國際企業 | C16: 748 | D16: 655 | E16: 1.14
A17: 14 | B17: 應用外語 | C17: 714 | D17: 631 | E17: 1.13
A18: 15 | B18: 休閒遊憩與管理 | C18: 781 | D18: 701 | E18: 1.11
A19: 16 | B19: 生物科技與生物資訊 | C19: 588 | D19: 558 | E19: 1.05
A20: 17 | B20: 資訊工程 | C20: 708 | D20: 750 | E20: 0.94
A21: 18 | B21: 電腦與通訊 | C21: 289 | D21: 322 | E21: 0.90
A22: 19 | B22: 資訊科學與應用學系 | C22: 415 | D22: 497 | E22: 0.84
A23: 20 | B23: 會計與資訊 | C23: 284 | D23: 355 | E23: 0.80
A24: 21 | B24: 生活應用 | C24: 495 | D24: 626 | E24: 0.79
A25: 22 | B25: 總務處 | C25: 10 | D25: 13 | E25: 0.77
A26: 23 | B26: 資訊傳播 | C26: 131 | D26: 196 | E26: 0.67
A27: 24 | B27: 財務金融 | C27: 191 | D27: 426 | E27: 0.45
A28: 25 | B28: 資訊中心 | C28: 3 | D28: 7 | E28: 0.43
A29: 26 | B29: 會計室 | C29: 2 | D29: 5 | E29: 0.40
A30: 27 | B30: 體育室 | C30: 3 | D30: 8 | E30: 0.38

Sheet 05月
A1: 94年05月份單位系所借閱排行榜
A2: 排行 | B2: 單位系所 | C2: 總借書量 | D2: 單位系所總人數 | E2: 平均每人借閱冊數
A3: 1 | B3: 圖書館 | C3: 61 | D3: 6 | E3: 10.17
A4: 2 | B4: 秘書室 | C4: 7 | D4: 1 | E4: 7
A5: 3 | B5: 多媒體遊戲設計 | C5: 81 | D5: 15 | E5: =SUM(C5/D5) -> 5.40
A6: 4 | B6: 會計室 | C6: 27 | D6: 5 | E6: =SUM(C6/D6) -> 5.40
A7: 5 | B7: 幼兒教育學系 | C7: 428 | D7: 80 | E7: =SUM(C7/D7) -> 5.35
A8: 6 | B8: 醫務管理 | C8: 1,264 | D8: 355 | E8: =SUM(C8/D8) -> 3.56
A9: 7 | B9: 社會工作 | C9: 1,532 | D9: 457 | E9: =SUM(C9/D9) -> 3.35
A10: 8 | B10: 長期照護 | C10: 133 | D10: 42 | E10: =SUM(C10/D10) -> 3.17
A11: 9 | B11: 生物資訊 | C11: 257 | D11: 91 | E11: =SUM(C11/D11) -> 2.82
A12: 10 | B12: 健康管理 | C12: 475 | D12: 170 | E12: =SUM(C12/D12) -> 2.79
A13: 11 | B13: 生活應用 | C13: 1,027 | D13: 389 | E13: =SUM(C13/D13) -> 2.64
A14: 12 | B14: 休閒遊憩與管理 | C14: 1,285 | D14: 489 | E14: =SUM(C14/D14) -> 2.63
A15: 13 | B15: 經營管理 | C15: 273 | D15: 109 | E15: =SUM(C15/D15) -> 2.50
A16: 14 | B16: 財經法律 | C16: 507 | D16: 237 | E16: =SUM(C16/D16) -> 2.14
A17: 15 | B17: 資訊與設計 | C17: 771 | D17: 367 | E17: =SUM(C17/D17) -> 2.10
A18: 16 | B18: 應用外語 | C18: 1,147 | D18: 547 | E18: =SUM(C18/D18) -> 2.10
A19: 17 | B19: 資訊科技 | C19: 335 | D19: 161 | E19: =SUM(C19/D19) -> 2.08
A20: 18 | B20: 電腦與通訊 | C20: 358 | D20: 189 | E20: =SUM(C20/D20) -> 1.89
A21: 19 | B21: 心理學系 | C21: 167 | D21: 95 | E21: =SUM(C21/D21) -> 1.76
A22: 20 | B22: 資訊傳播 | C22: 142 | D22: 82 | E22: =SUM(C22/D22) -> 1.73
A23: 21 | B23: 資訊科學與應用 | C23: 689 | D23: 399 | E23: =SUM(C23/D23) -> 1.73
A24: 22 | B24: 國際企業 | C24: 836 | D24: 499 | E24: =SUM(C24/D24) -> 1.68
A25: 23 | B25: 資訊工程 | C25: 601 | D25: 366 | E25: =SUM(C25/D25) -> 1.64
A26: 24 | B26: 財務金融 | C26: 456 | D26: 298 | E26: =SUM(C26/D26) -> 1.53
A27: 24 | B27: 生物科技 | C27: 361 | D27: 236 | E27: =SUM(C27/D27) -> 1.53
A28: 25 | B28: 會計與資訊 | C28: 415 | D28: 286 | E28: =SUM(C28/D28) -> 1.45
A29: 26 | B29: 教務處 | C29: 5 | D29: 4 | E29: =SUM(C29/D29) -> 1.25
A30: 27 | B30: 通識教育中心 | C30: 14 | D30: 18 | E30: =SUM(C30/D30) -> 0.78
A31: 28 | B31: 學務處 | C31: 8 | D31: 12 | E31: =SUM(C31/D31) -> 0.67
A32: 29 | B32: 資訊中心 | C32: 2 | D32: 4 | E32: =SUM(C32/D32) -> 0.50
A33: 30 | B33: 總務處 | C33: 3 | D33: 12 | E33: =SUM(C33/D33) -> 0.25

Sheet 04月
A1: 94年04月份單位系所借閱排行榜
A2: 排行 | B2: 單位系所 | C2: 總借書量 | D2: 單位系所總人數 | E2: 平均每人借閱冊數
A3: 1 | B3: 秘書室 | C3: 16 | D3: 1 | E3: 16
A4: 2 | B4: 圖書館 | C4: 75 | D4: 6 | E4: 12.5
A5: 3 | B5: 多媒體遊戲設計 | C5: 108 | D5: 15 | E5: =SUM(C5/D5) -> 7.20
A6: 4 | B6: 資訊中心 | C6: 19 | D6: 5 | E6: =SUM(C6/D6) -> 3.80
A7: 5 | B7: 教務處 | C7: 13 | D7: 4 | E7: =SUM(C7/D7) -> 3.25
A8: 6 | B8: 幼兒教育學系 | C8: 251 | D8: 80 | E8: =SUM(C8/D8) -> 3.14
A9: 7 | B9: 生物資訊 | C9: 273 | D9: 91 | E9: =SUM(C9/D9) -> 3.00
A10: 8 | B10: 會計室 | C10: 14 | D10: 5 | E10: =SUM(C10/D10) -> 2.80
A11: 9 | B11: 健康管理 | C11: 405 | D11: 170 | E11: =SUM(C11/D11) -> 2.38
A12: 10 | B12: 經營管理 | C12: 249 | D12: 108 | E12: =SUM(C12/D12) -> 2.31
A13: 11 | B13: 醫務管理 | C13: 828 | D13: 388 | E13: =SUM(C13/D13) -> 2.13
A14: 12 | B14: 社會工作 | C14: 957 | D14: 501 | E14: =SUM(C14/D14) -> 1.91
A15: 13 | B15: 資訊科技 | C15: 326 | D15: 175 | E15: =SUM(C15/D15) -> 1.86
A16: 14 | B16: 資訊工程 | C16: 673 | D16: 364 | E16: =SUM(C16/D16) -> 1.85
A17: 15 | B17: 電腦與通訊 | C17: 339 | D17: 188 | E17: =SUM(C17/D17) -> 1.80
A18: 16 | B18: 資訊傳播 | C18: 146 | D18: 82 | E18: =SUM(C18/D18) -> 1.78
A19: 17 | B19: 休閒遊憩與管理 | C19: 898 | D19: 508 | E19: =SUM(C19/D19) -> 1.77
A20: 18 | B20: 財經法律 | C20: 397 | D20: 237 | E20: =SUM(C20/D20) -> 1.68
A21: 19 | B21: 長期照護 | C21: 69 | D21: 42 | E21: =SUM(C21/D21) -> 1.64
A22: 20 | B22: 生活應用 | C22: 731 | D22: 463 | E22: =SUM(C22/D22) -> 1.58
A23: 21 | B23: 國際企業 | C23: 836 | D23: 539 | E23: =SUM(C23/D23) -> 1.55
A24: 22 | B24: 資訊與設計 | C24: 607 | D24: 399 | E24: =SUM(C24/D24) -> 1.52
A25: 23 | B25: 應用外語 | C25: 950 | D25: 708 | E25: =SUM(C25/D25) -> 1.34
A26: 24 | B26: 心理學系 | C26: 123 | D26: 95 | E26: =SUM(C26/D26) -> 1.29
A27: 25 | B27: 會計與資訊 | C27: 428 | D27: 335 | E27: =SUM(C27/D27) -> 1.28
A28: 26 | B28: 總務處 | C28: 14 | D28: 11 | E28: =SUM(C28/D28) -> 1.27
A29: 27 | B29: 通識教育中心 | C29: 19 | D29: 18 | E29: =SUM(C29/D29) -> 1.06
A30: 27 | B30: 生物科技 | C30: 249 | D30: 236 | E30: =SUM(C30/D30) -> 1.06
A31: 28 | B31: 財務金融 | C31: 336 | D31: 321 | E31: =SUM(C31/D31) -> 1.05
A32: 29 | B32: 資訊科學與應用 | C32: 529 | D32: 521 | E32: =SUM(C32/D32) -> 1.02
A33: 30 | B33: 學務處 | C33: 7 | D33: 12 | E33: =SUM(C33/D33) -> 0.58
A34: 31 | B34: 體育室 | C34: 2 | D34: 7 | E34: =SUM(C34/D34) -> 0.29

Sheet 03月
A1: 94年03月份單位系所借閱排行榜
A2: 排行 | B2: 單位系所 | C2: 總借書量 | D2: 單位系所總人數 | E2: 平均每人借閱冊數
A3: 1 | B3: 圖書館 | C3: 71 | D3: 6 | E3: 11.83
A4: 2 | B4: 多媒體遊戲設計 | C4: 133 | D4: 15 | E4: 8.87
A5: 3 | B5: 資訊中心 | C5: 41 | D5: 6 | E5: =SUM(C5/D5) -> 6.83
A6: 4 | B6: 教務處 | C6: 13 | D6: 3 | E6: =SUM(C6/D6) -> 4.33
A7: 5 | B7: 生物資訊 | C7: 387 | D7: 90 | E7: =SUM(C7/D7) -> 4.30
A8: 6 | B8: 幼兒教育學系 | C8: 333 | D8: 80 | E8: =SUM(C8/D8) -> 4.16
A9: 7 | B9: 健康管理 | C9: 521 | D9: 173 | E9: =SUM(C9/D9) -> 3.01
A10: 8 | B10: 醫務管理 | C10: 1117 | D10: 387 | E10: =SUM(C10/D10) -> 2.89
A11: 9 | B11: 長期照護 | C11: 117 | D11: 41 | E11: =SUM(C11/D11) -> 2.85
A12: 10 | B12: 經營管理 | C12: 308 | D12: 110 | E12: =SUM(C12/D12) -> 2.80
A13: 11 | B13: 電腦與通訊 | C13: 483 | D13: 189 | E13: =SUM(C13/D13) -> 2.56
A14: 12 | B14: 社會工作 | C14: 1266 | D14: 500 | E14: =SUM(C14/D14) -> 2.53
A15: 13 | B15: 休閒遊憩與管理 | C15: 1177 | D15: 511 | E15: =SUM(C15/D15) -> 2.30
A16: 14 | B16: 資訊工程 | C16: 778 | D16: 364 | E16: =SUM(C16/D16) -> 2.14
A17: 15 | B17: 財經法律 | C17: 492 | D17: 239 | E17: =SUM(C17/D17) -> 2.06
A18: 16 | B18: 人事室 | C18: 6 | D18: 3 | E18: =SUM(C18/D18) -> 2.00
A19: 17 | B19: 國際企業 | C19: 1010 | D19: 540 | E19: =SUM(C19/D19) -> 1.87
A20: 18 | B20: 應用外語 | C20: 1292 | D20: 713 | E20: =SUM(C20/D20) -> 1.81
A21: 19 | B21: 生活應用 | C21: 819 | D21: 462 | E21: =SUM(C21/D21) -> 1.77
A22: 20 | B22: 心理學系 | C22: 168 | D22: 96 | E22: =SUM(C22/D22) -> 1.75
A23: 21 | B23: 資訊與設計 | C23: 654 | D23: 400 | E23: =SUM(C23/D23) -> 1.64
A24: 22 | B24: 資訊科學與應用 | C24: 813 | D24: 523 | E24: =SUM(C24/D24) -> 1.55
A25: 23 | B25: 資訊傳播 | C25: 124 | D25: 82 | E25: =SUM(C25/D25) -> 1.51
A26: 24 | B26: 生物科技 | C26: 354 | D26: 236 | E26: =SUM(C26/D26) -> 1.50
A27: 25 | B27: 資訊科技 | C27: 262 | D27: 176 | E27: =SUM(C27/D27) -> 1.49
A28: 26 | B28: 會計與資訊 | C28: 472 | D28: 334 | E28: =SUM(C28/D28) -> 1.41
A29: 27 | B29: 會計室 | C29: 7 | D29: 5 | E29: =SUM(C29/D29) -> 1.40
A30: 28 | B30: 財務金融 | C30: 412 | D30: 321 | E30: =SUM(C30/D30) -> 1.28
A31: 29 | B31: 通識教育中心 | C31: 28 | D31: 22 | E31: =SUM(C31/D31) -> 1.27
A32: 30 | B32: 學務處 | C32: 8 | D32: 11 | E32: =SUM(C32/D32) -> 0.73
A33: 31 | B33: 總務處 | C33: 6 | D33: 10 | E33: =SUM(C33/D33) -> 0.60
A34: 32 | B34: 體育室 | C34: 2 | D34: 7 | E34: =SUM(C34/D34) -> 0.29

Sheet 01月
A1: 94年01月份單位系所借閱排行榜
A2: 排行 | B2: 單位系所 | C2: 總借書量 | D2: 單位系所總人數 | E2: 平均每人借閱冊數
A3: 1 | B3: 資訊中心 | C3: 36 | D3: 6 | E3: 6
A4: 2 | B4: 教務處 | C4: 19 | D4: 4 | E4: 4.75
A5: 3 | B5: 多媒體遊戲設計 | C5: 56 | D5: 15 | E5: =SUM(C5/D5) -> 3.73
A6: 4 | B6: 人事室 | C6: 10 | D6: 3 | E6: =SUM(C6/D6) -> 3.33
A7: 5 | B7: 幼兒教育學系 | C7: 230 | D7: 81 | E7: =SUM(C7/D7) -> 2.84
A8: 6 | B8: 圖書館 | C8: 17 | D8: 6 | E8: =SUM(C8/D8) -> 2.83
A9: 7 | B9: 社會工作 | C9: 1439 | D9: 517 | E9: =SUM(C9/D9) -> 2.78
A10: 8 | B10: 健康管理 | C10: 479 | D10: 174 | E10: =SUM(C10/D10) -> 2.75
A11: 9 | B11: 生物資訊 | C11: 253 | D11: 93 | E11: =SUM(C11/D11) -> 2.72
A12: 10 | B12: 長期照護 | C12: 89 | D12: 41 | E12: =SUM(C12/D12) -> 2.17
A13: 11 | B13: 心理學系 | C13: 196 | D13: 96 | E13: =SUM(C13/D13) -> 2.04
A14: 12 | B14: 經營管理 | C14: 206 | D14: 113 | E14: =SUM(C14/D14) -> 1.82
A15: 13 | B15: 醫務管理 | C15: 598 | D15: 392 | E15: =SUM(C15/D15) -> 1.53
A16: 14 | B16: 總務處 | C16: 17 | D16: 12 | E16: =SUM(C16/D16) -> 1.42
A17: 15 | B17: 國際企業 | C17: 764 | D17: 550 | E17: =SUM(C17/D17) -> 1.39
A18: 16 | B18: 資訊工程 | C18: 508 | D18: 367 | E18: =SUM(C18/D18) -> 1.38
A19: 17 | B19: 電腦與通訊 | C19: 259 | D19: 193 | E19: =SUM(C19/D19) -> 1.34
A20: 18 | B20: 財經法律 | C20: 319 | D20: 241 | E20: =SUM(C20/D20) -> 1.32
A21: 18 | B21: 資訊科技 | C21: 232 | D21: 176 | E21: =SUM(C21/D21) -> 1.32
A22: 19 | B22: 會計室 | C22: 5 | D22: 4 | E22: =SUM(C22/D22) -> 1.25
A23: 20 | B23: 休閒遊憩與管理 | C23: 581 | D23: 526 | E23: =SUM(C23/D23) -> 1.10
A24: 21 | B24: 生活應用 | C24: 512 | D24: 470 | E24: =SUM(C24/D24) -> 1.09
A25: 22 | B25: 生物科技 | C25: 246 | D25: 239 | E25: =SUM(C25/D25) -> 1.03
A26: 23 | B26: 資訊與設計 | C26: 379 | D26: 406 | E26: =SUM(C26/D26) -> 0.93
A27: 24 | B27: 資訊科學與應用學系 | C27: 470 | D27: 529 | E27: =SUM(C27/D27) -> 0.89
A28: 25 | B28: 財務金融 | C28: 279 | D28: 324 | E28: =SUM(C28/D28) -> 0.86
A29: 26 | B29: 會計與資訊 | C29: 280 | D29: 338 | E29: =SUM(C29/D29) -> 0.83
A30: 27 | B30: 應用外語 | C30: 516 | D30: 719 | E30: =SUM(C30/D30) -> 0.72
A31: 28 | B31: 體育室 | C31: 4 | D31: 7 | E31: =SUM(C31/D31) -> 0.57
A32: 29 | B32: 學務處 | C32: 6 | D32: 11 | E32: =SUM(C32/D32) -> 0.55
A33: 30 | B33: 資訊傳播 | C33: 44 | D33: 84 | E33: =SUM(C33/D33) -> 0.52
A34: 31 | B34: 通識教育中心 | C34: 5 | D34: 21 | E34: =SUM(C34/D34) -> 0.24
